fUSD/lending_fUSD_20260202
["ID","MTS","AMOUNT","RATE_DAILY","PERIOD"]
[404284590,1770030646686,-2000.0,0.00017116,2]
[404284591,1770030646696,-974.64879752,0.00017116,2]
[404284592,1770030646705,-643.18674336,0.00017116,2]
[404284593,1770030646714,-2000.0,0.00017116,2]
[404284594,1770030646723,-689.68040771,0.00017116,2]
[404284595,1770030646732,-1256.98671009,0.00017116,2]
[404284596,1770030646741,-1488.36339388,0.00017116,2]
[404284597,1770030646751,-506.20015718,0.00017116,2]
[404284598,1770030646760,-1612.39809416,0.00017116,2]
[404284599,1770030646770,-2000.0,0.00017116,2]
[404284600,1770030646780,-2000.0,0.00017116,2]
[404284601,1770030646789,-2000.0,0.00017116,2]
[404284602,1770030646798,-16336.26806382,0.00017158,2]
[404284603,1770030646807,-16108.86660308,0.00017158,2]
[404284604,1770030646816,-5163.0,0.00017174,2]
[404284605,1770030646825,-1330.2,0.00017202,2]
[404284606,1770030646834,-200.0,0.00017214,2]
[404284607,1770030646843,-1899.6725397,0.00017243,2]
[404284608,1770030646852,-1000.0,0.0001726,2]
[404284609,1770030646861,-1500.0,0.000173,2]
[404284610,1770030646870,-187.78006525,0.00017306,2]
[404284611,1770030646880,-225.18697532,0.00017306,2]
[404284612,1770030646889,-1536.04360649,0.00017306,2]
[404284613,1770030646898,-225.18697532,0.00017306,2]
[404284614,1770030646907,-924.60877284,0.00017306,2]
[404284615,1770030646916,-159.99318318,0.0001732,2]
[404284616,1770030646925,-772.93,0.00017474,2]
[404284617,1770030646936,-839.0,0.00017495,2]
[404284618,1770030646948,-1000.0,0.00017534,2]
[404284619,1770030646957,-5163.0,0.00017555,2]
[404284620,1770030646967,-334.5472959,0.00017579,2]
[404284621,1770030646976,-200.0,0.00017656,2]
[404284622,1770030646986,-2393.7410466,0.00017661,2]
[404284623,1770030646998,-3238.8147,0.00017661,2]
[404284624,1770030647007,-1002.53462592,0.00017664,2]
[404284625,1770030647018,-447.23523297,0.00017664,2]
[404284626,1770030647028,-502.03881526,0.00017664,2]
[404284627,1770030647038,-1504.86417643,0.00017664,2]
[404284628,1770030647047,-716.63993214,0.00017664,2]
[404284629,1770030647057,-163.0,0.0001768,2]
[404284630,1770030647066,-163.0,0.0001768,2]
[404284631,1770030647076,-4991.0,0.00017691,2]
[404284632,1770030647085,-4991.0,0.00017694,2]
[404284633,1770030647095,-5163.0,0.00017695,2]
[404284634,1770030647104,-715.94,0.00017709,2]
[404284635,1770030647113,-5163.0,0.00017711,2]
[404284636,1770030647122,-150.0,0.00017726,2]
[404284637,1770030647131,-500.0,0.00017726,2]
[404284638,1770030647140,-150.4373073,0.00017726,2]
[404284639,1770030647149,-150.0,0.00017726,2]
[404284640,1770030647158,-500.0,0.00017726,2]
[404284641,1770030647168,-500.0,0.00017726,2]
[404284642,1770030647177,-500.0,0.00017726,2]
[404284643,1770030647186,-150.0,0.00017726,2]
[404284644,1770030647195,-150.0,0.00017726,2]
[404284645,1770030647204,-150.0,0.00017726,2]
[404284646,1770030647214,-150.0,0.00017726,2]
[404284647,1770030647223,-500.0,0.00017726,2]
[404284648,1770030647232,-500.0,0.00017726,2]
[404284649,1770030647242,-150.0,0.00017726,2]
[404284650,1770030647251,-25000.0,0.00017733,3]
[404284651,1770030647261,-25000.0,0.00017742,3]
[404284652,1770030647271,-150.0,0.00017742,2]
[404284653,1770030647280,-25000.0,0.0001775,3]
[404284654,1770030647290,-10091.57601831,0.00017756,2]
[404284655,1770030647299,-5163.0,0.00017758,2]
[404284656,1770030647309,-25000.0,0.00017759,3]
[404284657,1770030647318,-25000.0,0.00017768,3]
[404284658,1770030647328,-200.0,0.0001777,2]
[404284659,1770030647337,-25000.0,0.00017777,3]
[404284660,1770030647347,-150.0,0.00017781,2]
[404284661,1770030647356,-500.0,0.00017781,2]
[404284662,1770030647366,-150.0,0.00017781,2]
[404284663,1770030647375,-500.0,0.00017781,2]
[404284664,1770030647388,-500.0,0.00017781,2]
[404284665,1770030647397,-500.0,0.00017781,2]
[404284666,1770030647407,-150.0,0.00017781,2]
[404284667,1770030647417,-150.0,0.00017781,2]
[404284668,1770030647426,-150.0,0.00017781,2]
[404284669,1770030647437,-150.0,0.00017781,2]
[404284670,1770030647447,-500.0,0.00017781,2]
[404284671,1770030647456,-500.0,0.00017781,2]
[404284672,1770030647466,-150.0,0.00017781,2]
[404284673,1770030647476,-25000.0,0.00017786,3]
[404284674,1770030647485,-1000.0,0.00017786,2]
[404284675,1770030647495,-25000.0,0.00017794,3]
[404284676,1770030647504,-1500.0,0.000178,2]
[404284677,1770030647514,-1500.0,0.000178,2]
[404284678,1770030647524,-275.02857155,0.00017803,2]
[404284679,1770030647533,-25000.0,0.00017803,3]
[404284680,1770030647543,-153.21504762,0.00017807,2]
[404284681,1770030647552,-500.0,0.00017808,2]
[404284682,1770030647562,-1000.0,0.00017808,2]
[404284683,1770030647572,-319.0,0.00017808,2]
[404284684,1770030647581,-25000.0,0.00017812,3]
[404284685,1770030647591,-1000.0,0.00017818,2]
[404284686,1770030647600,-150.0,0.0001782,2]
[404284687,1770030647610,-2000.0,0.0001782,2]
[404284688,1770030647620,-25000.0,0.00017821,3]
[404284689,1770030647630,-25000.0,0.0001783,3]
[404284690,1770030647639,-150.0,0.00017836,2]
[404284691,1770030647649,-500.0,0.00017836,2]
[404284692,1770030647658,-150.0,0.00017836,2]
[404284693,1770030647668,-500.0,0.00017836,2]
[404284694,1770030647677,-569.21162373,0.00017836,2]
[404284695,1770030647686,-500.0,0.00017836,2]
[404284696,1770030647696,-150.0,0.00017836,2]
[404284697,1770030647705,-150.0,0.00017836,2]
[404284698,1770030647715,-155.36591009,0.00017836,2]
[404284699,1770030647725,-215.60722138,0.00017836,2]
[404284700,1770030647734,-500.0,0.00017836,2]
[404284701,1770030647744,-548.08731584,0.00017836,2]
[404284702,1770030647754,-150.0,0.00017836,2]
[404284703,1770030647764,-25000.0,0.00017838,3]
[404284704,1770030647774,-25000.0,0.00017847,3]
[404284705,1770030647784,-194.72792766,0.00017854,2]
[404284706,1770030647794,-233.51889341,0.00017854,2]
[404284707,1770030647803,-1592.87721993,0.00017854,2]
[404284708,1770030647813,-233.51889341,0.00017854,2]
[404284709,1770030647823,-958.81929743,0.00017854,2]
[404284710,1770030647832,-200.0,0.00017855,2]
[404284711,1770030647842,-200.0,0.00017856,2]
[404284712,1770030647851,-25000.0,0.00017856,3]
[404284713,1770030647861,-200.0,0.00017856,2]
[404284714,1770030647872,-200.0,0.00017856,2]
[404284715,1770030647882,-500.0,0.00017863,2]
[404284716,1770030647891,-25000.0,0.00017865,3]
[404284717,1770030647900,-25000.0,0.00017874,3]
[404284718,1770030647910,-16336.26806382,0.00017877,2]
[404284719,1770030647920,-16108.86660308,0.00017877,2]
[404284720,1770030647929,-200.009499,0.00017879,2]
[404284721,1770030647939,-25000.0,0.00017882,3]
[404284722,1770030647953,-4991.0,0.00017884,2]
[404284723,1770030647963,-200.0,0.0001789,2]
[404284724,1770030647972,-500.0,0.0001789,2]
[404284725,1770030647982,-179.32668848,0.0001789,2]
[404284726,1770030647993,-500.0,0.0001789,2]
[404284727,1770030648003,-500.0,0.0001789,2]
[404284728,1770030648012,-169.35603716,0.0001789,2]
[404284729,1770030648022,-235.58915604,0.0001789,2]
[404284730,1770030648031,-500.0,0.0001789,2]
[404284731,1770030648041,-150.0,0.0001789,2]
[404284732,1770030648050,-25000.0,0.00017891,3]
[404284733,1770030648060,-25000.0,0.000179,3]
[404284734,1770030648069,-328.1255416,0.000179,2]
[404284735,1770030648079,-602.69016774,0.000179,2]
[404284736,1770030648089,-370.87018135,0.000179,2]
[404284737,1770030648098,-17205.90121961,0.000179,3]
[404284738,1770030648108,-223.27584943,0.000179,2]
[404284739,1770030648118,-398.48043383,0.000179,2]
[404284740,1770030648127,-7719.25534853,0.000179,2]
[404284741,1770030648137,-242.83565079,0.00017904,2]
[404284742,1770030648147,-500.0,0.00017918,2]
[404284743,1770030648156,-2000.0,0.0001792,2]
[404284744,1770030648166,-150.0,0.00017928,2]
[404284745,1770030648175,-152.49,0.00017938,2]
[404284746,1770030648184,-233.3364064,0.00017944,2]
[404284747,1770030648194,-500.0,0.00017945,2]
[404284748,1770030648203,-500.0,0.00017945,2]
[404284749,1770030648213,-506.61162713,0.00017945,2]
[404284750,1770030648222,-158.43558998,0.00017945,2]
[404284751,1770030648232,-150.0,0.00017945,2]
[404284752,1770030648241,-1330.2,0.00017966,2]
[404284753,1770030648251,-506.1208044,0.00017972,2]
[404284754,1770030648260,-319474.9832095,0.00017977,2]
[404284755,1770030648270,-2221.7005242,0.00017977,2]
[404284756,1770030648281,-629.3854546,0.00017977,2]
[404284757,1770030648291,-66937.6359938,0.00017977,2]
[404284758,1770030648300,-549.0836383,0.00017977,2]
[404284759,1770030648310,-500.0,0.00017982,2]
[404284760,1770030648319,-283.19199064,0.0001799,2]
[404284761,1770030648329,-283.19199064,0.0001799,2]
[404284762,1770030648339,-152.49,0.00017997,2]
[404284763,1770030648348,-153.40029052,0.00017999,2]
[404284764,1770030648358,-155.0,0.00017999,2]
[404284765,1770030648367,-300.0,0.00017999,2]
[404284766,1770030648376,-300.0,0.00017999,2]
[404284767,1770030648386,-300.0,0.00017999,2]
[404284768,1770030648396,-300.0,0.00017999,2]
[404284769,1770030648405,-500.0,0.00018,2]
[404284770,1770030648414,-500.0,0.00018,2]
[404284771,1770030648424,-207.33206215,0.00018,2]
[404284772,1770030648434,-678056.72465773,0.00018,2]
[404284773,1770030648443,-813.94526043,0.00018,2]
[404284774,1770030648453,-1191.99317303,0.00018,2]
[404284775,1770030648462,-1000.0,0.00018,2]
[404284776,1770030648472,-1000.0,0.00018,2]
[404284777,1770030648481,-1000.0,0.00018,2]
[404284778,1770030648490,-1000.0,0.00018,2]
[404284779,1770030648500,-1000.0,0.00018,2]
[404284780,1770030648510,-1000.0,0.00018,2]
[404284781,1770030648519,-1000.0,0.00018,2]
[404284782,1770030648530,-1000.0,0.00018,2]
[404284783,1770030648539,-1000.0,0.00018,2]
[404284784,1770030648549,-1000.0,0.00018,2]
[404284785,1770030648558,-1000.0,0.00018,2]
[404284786,1770030648567,-1000.0,0.00018,2]
[404284787,1770030648576,-1000.0,0.00018,2]
[404284788,1770030648586,-1000.0,0.00018,2]
[404284789,1770030648595,-1000.0,0.00018,2]
[404284790,1770030648604,-1000.0,0.00018,2]
[404284791,1770030648613,-1000.0,0.00018,2]
[404284792,1770030648622,-1000.0,0.00018,2]
[404284793,1770030648632,-1000.0,0.00018,2]
[404284794,1770030648642,-1000.0,0.00018,2]
[404284795,1770030648651,-1000.0,0.00018,2]
[404284796,1770030648661,-1000.0,0.00018,2]
[404284797,1770030648671,-1000.0,0.00018,2]
[404284798,1770030648680,-1141.04007611,0.00018,2]
[404284799,1770030648689,-5800.0,0.00018,2]
[404284800,1770030648699,-4577982.82544924,0.00018,2]
[404284801,1770030648961,-3412.65211927,0.00018,2]
[404284802,1770030649412,-321979.42043585,0.00018,2]
[404284803,1770030649427,-776.92,0.00018,2]
[404284804,1770030649439,-8617.54191105,0.00018,2]
[404284805,1770030649489,-3861.63503855,0.00018,2]
[404284806,1770030649501,-473.92830005,0.00018,2]
[404284807,1770030665253,150.0,0.00022,120]
[404284808,1770030911947,-1300.01,0.00011919,2]
[404284809,1770030911961,-2399.99,0.00011919,2]
[404284810,1770030927170,-1000.0,0.0001192,2]
[404284811,1770031201105,500.0,0.00013401,60]
[404284812,1770031212152,1596.76027984,0.00022,90]
[404284888,1770031831964,-1240.033552,0.00013047,2]
[404284889,1770031831982,-717.11903426,0.00013113,2]
[404284890,1770031832043,-322.59321388,0.00013113,2]
[404284891,1770031832056,-1377.69079332,0.00013113,2]
[404284892,1770031832100,-3334.76220405,0.00013113,2]
[404284893,1770031832117,-1401.54475449,0.00013113,2]
[404284894,1770031832127,-1.85353411,0.00013113,2]
[404284895,1770031832139,-256.14646589,0.00013113,2]
[404284896,1770031832149,-137.86853336,0.00013119,2]
[404284897,1770031832160,-112.13146664,0.00013119,2]
[404284898,1770031832170,-1200.0,0.00013124,2]
[404284899,1770031832180,-383.04806819,0.00013172,2]
[404284900,1770031832190,-300.0,0.0001319,2]
[404284901,1770031832201,-300.0,0.0001319,2]
[404284902,1770031832213,-300.0,0.0001319,2]
[404284903,1770031832225,-150.0,0.0001319,2]
[404284904,1770031832237,-132559.12,0.00013191,2]
[404284905,1770031832248,-198.39137328,0.00013242,2]
[404284906,1770031832260,-1852.42,0.00013245,2]
[404284907,1770031832275,-304.07042407,0.00013342,2]
[404284908,1770031832291,-500.0,0.00013346,2]
[404284909,1770031832303,-241.30526006,0.0001336,2]
[404284910,1770031832318,-636.80839912,0.0001336,2]
[404284911,1770031832340,-1123.40549935,0.0001336,2]
[404284912,1770031832356,-1000.0,0.0001341,2]
[404284913,1770031832368,-3240.0,0.00013425,2]
[404284914,1770031832379,-1200.0,0.00013443,2]
[404284915,1770031832390,-1013.85,0.00013444,2]
[404284916,1770031832402,-631.73,0.00013497,2]
[404284917,1770031832414,-304.07042407,0.00013553,2]
[404284918,1770031832425,-81256.48366678,0.00013597,2]
[404284919,1770031832438,-24851.85218282,0.00013597,2]
[404284920,1770031832451,-23309.10374584,0.00013597,2]
[404284921,1770031832464,-17603.99911983,0.00013597,2]
[404284922,1770031832477,-4176.35000222,0.00013597,2]
[404284923,1770031832498,-260.03248731,0.00013597,2]
[404284924,1770031832510,-11215.31893508,0.00013597,2]
[404284925,1770031832523,-501.01040161,0.00013597,2]
[404284927,1770031838029,-305.96311241,0.00013597,2]
[404284928,1770031838040,-2301.30594,0.00013597,2]
[404284937,1770031840014,-2734218.5804061,0.00013597,2]
[404284938,1770031840024,-304.07042407,0.00013697,2]
[404284939,1770031840034,-9999.99,0.00013697,2]
[404284940,1770031840043,-999.99,0.00013697,2]
[404284941,1770031840053,-5935.32,0.00013697,2]
[404284942,1770031840063,-9999.99,0.00013697,2]
[404284943,1770031840072,-150.99,0.00013697,2]
[404284944,1770031840082,-150.99,0.00013697,2]
[404284945,1770031840092,-2376.32,0.00013697,2]
[404284946,1770031840101,-500.0,0.00013698,2]
[404284947,1770031840110,-310.72048062,0.00013698,2]
[404284948,1770031840119,-500.0,0.00013698,2]
[404284949,1770031840128,-500.89475649,0.00013698,2]
[404284950,1770031840137,-181.68,0.00013767,2]
[404284951,1770031840146,-500.0,0.00013973,2]
[404284952,1770031840155,-500.0,0.00013973,2]
[404284953,1770031840165,-828.0,0.00014067,2]
[404284954,1770031840174,-150.0,0.00014328,2]
[404284955,1770031840184,-3776.56493821,0.0001439,2]
[404284956,1770031840193,-250.0,0.00014424,2]
[404284957,1770031840202,-2500.0,0.00014424,2]
[404284958,1770031840211,-600.0,0.00014424,2]
[404284959,1770031840221,-600.0,0.00014424,2]
[404284960,1770031840230,-600.0,0.00014424,2]
[404284961,1770031840240,-600.0,0.00014424,2]
[404284962,1770031840249,-600.0,0.00014424,2]
[404284963,1770031840258,-195.0,0.00014424,2]
[404284964,1770031840266,-195.0,0.00014424,2]
[404284965,1770031840276,-198.39137328,0.00014429,2]
[404284966,1770031840286,-1680.0,0.00014437,2]
[404284967,1770031840295,-169.52791301,0.00014481,2]
[404284968,1770031840306,-3267.2536128,0.00014481,2]
[404284969,1770031840315,-720.83581716,0.00014481,2]
[404284970,1770031840324,-2573.08511619,0.00014481,2]
[404284971,1770031840336,-301.85289065,0.00014481,2]
[404284972,1770031840346,-199.24021692,0.00014481,2]
[404284973,1770031840355,-301.85289065,0.00014481,2]
[404284974,1770031840364,-1860.35783052,0.00014481,2]
[404284975,1770031840375,-3221.77332067,0.00014481,2]
[404284976,1770031840384,-195.0,0.00014493,2]
[404284977,1770031840393,-2500.0,0.00014529,2]
[404284978,1770031840403,-2500.0,0.00014529,2]
[404284979,1770031840412,-2500.0,0.00014529,2]
[404284980,1770031840421,-201.49801051,0.00014529,2]
[404284981,1770031840430,-300.0,0.00014529,2]
[404284982,1770031840439,-195.0,0.00014529,2]
[404284983,1770031840448,-502.27711246,0.00014529,2]
[404284984,1770031840457,-300.0,0.00014529,2]
[404284985,1770031840466,-195.0,0.00014529,2]
[404284986,1770031840475,-2500.0,0.00014529,2]
[404284987,1770031840485,-181.68,0.00014532,2]
[404284988,1770031840494,-691.55,0.00014566,2]
[404284989,1770031840503,-691.55,0.00014566,2]
[404284990,1770031840512,-691.55,0.00014566,2]
[404284991,1770031840521,-691.55,0.00014566,2]
[404284992,1770031840530,-691.55,0.00014566,2]
[404284993,1770031840539,-188.79466042,0.00014566,2]
[404284994,1770031840548,-498.29250115,0.00014575,2]
[404284995,1770031840558,-304.75672637,0.00014575,2]
[404284996,1770031840568,-500.0,0.00014575,2]
[404284997,1770031840577,-500.0,0.00014575,2]
[404284998,1770031840589,-500.0,0.00014575,2]
[404284999,1770031840598,-500.0,0.00014575,2]
[404285000,1770031840607,-500.0,0.00014575,2]
[404285001,1770031840617,-641.49153395,0.00014575,2]
[404285002,1770031840626,-500.0,0.00014575,2]
[404285003,1770031840635,-500.0,0.00014575,2]
[404285004,1770031840644,-500.0,0.00014575,2]
[404285005,1770031840653,-6229.0,0.00014581,2]
[404285006,1770031840662,-150.0,0.00014581,2]
[404285007,1770031840671,-150.0,0.00014581,2]
[404285008,1770031840680,-500.0,0.00014581,2]
[404285009,1770031840691,-150.0,0.00014581,2]
[404285010,1770031840700,-150.4373073,0.00014581,2]
[404285011,1770031840709,-500.0,0.00014581,2]
[404285012,1770031840718,-500.0,0.00014581,2]
[404285013,1770031840727,-150.0,0.00014581,2]
[404285014,1770031840736,-500.0,0.00014581,2]
[404285015,1770031840745,-500.0,0.00014581,2]
[404285016,1770031840754,-150.0,0.00014581,2]
[404285017,1770031840763,-500.0,0.00014581,2]
[404285018,1770031840778,-150.0,0.00014581,2]
[404285019,1770031840787,-150.0,0.00014581,2]
[404285020,1770031840796,-150.0,0.00014581,2]
[404285021,1770031840805,-515.66713913,0.0001461,2]
[404285022,1770031840813,-6229.0,0.00014636,2]
[404285023,1770031840822,-154.11430393,0.00014636,2]
[404285024,1770031840831,-150.0,0.00014636,2]
[404285025,1770031840843,-500.0,0.00014636,2]
[404285026,1770031840852,-150.0,0.00014636,2]
[404285027,1770031840861,-500.0,0.00014636,2]
[404285028,1770031840870,-500.0,0.00014636,2]
[404285029,1770031840879,-150.0,0.00014636,2]
[404285030,1770031840888,-500.0,0.00014636,2]
[404285031,1770031840897,-500.0,0.00014636,2]
[404285032,1770031840905,-150.0,0.00014636,2]
[404285033,1770031840914,-150.0,0.00014636,2]
[404285034,1770031840923,-150.0,0.00014636,2]
[404285035,1770031840932,-150.0,0.00014636,2]
[404285036,1770031840941,-500.0,0.00014636,2]
[404285037,1770031840950,-500.0,0.00014668,2]
[404285038,1770031840958,-500.0,0.00014668,2]
[404285039,1770031840968,-500.0,0.00014668,2]
[404285040,1770031840977,-500.0,0.00014668,2]
[404285041,1770031840986,-500.0,0.00014668,2]
[404285042,1770031840996,-500.0,0.00014668,2]
[404285043,1770031841007,-500.0,0.00014668,2]
[404285044,1770031841023,-500.0,0.00014668,2]
[404285045,1770031841043,-471.25854336,0.00014668,2]
[404285046,1770031841060,-151.0,0.00014668,2]
[404285047,1770031841070,-500.0,0.00014668,2]
[404285048,1770031841080,-151.0,0.00014668,2]
[404285049,1770031841092,-500.0,0.00014668,2]
[404285050,1770031841101,-151.0,0.00014668,2]
[404285051,1770031841110,-500.0,0.00014668,2]
[404285052,1770031841119,-151.0,0.00014668,2]
[404285053,1770031841128,-500.0,0.00014668,2]
[404285054,1770031841137,-151.0,0.00014668,2]
[404285055,1770031841146,-500.0,0.00014668,2]
[404285056,1770031841155,-151.0,0.00014668,2]
[404285057,1770031841163,-500.0,0.00014668,2]
[404285058,1770031841173,-151.0,0.00014668,2]
[404285059,1770031841183,-500.0,0.00014668,2]
[404285060,1770031841192,-151.0,0.00014668,2]
[404285061,1770031841201,-151.0,0.00014668,2]
[404285062,1770031841211,-211.73556923,0.00014668,2]
[404285063,1770031841222,-151.0,0.00014668,2]
[404285064,1770031841232,-151.0,0.00014668,2]
[404285065,1770031841243,-6229.0,0.00014691,2]
[404285066,1770031841253,-150.0,0.00014691,2]
[404285067,1770031841262,-150.0,0.00014691,2]
[404285068,1770031841271,-500.0,0.00014691,2]
[404285069,1770031841282,-500.0,0.00014691,2]
[404285070,1770031841291,-569.21162373,0.00014691,2]
[404285071,1770031841302,-548.08731584,0.00014691,2]
[404285072,1770031841311,-150.0,0.00014691,2]
[404285073,1770031841319,-500.0,0.00014691,2]
[404285074,1770031841329,-155.36591009,0.00014691,2]
[404285075,1770031841342,-150.0,0.00014691,2]
[404285076,1770031841351,-150.0,0.00014691,2]
[404285077,1770031841360,-215.60722138,0.00014691,2]
[404285078,1770031841370,-500.0,0.00014691,2]
[404285079,1770031841378,-1024.0,0.00014735,2]
[404285080,1770031841388,-6229.0,0.00014745,2]
[404285081,1770031841398,-200.0,0.00014745,2]
[404285082,1770031841407,-179.32668848,0.00014745,2]
[404285083,1770031841416,-500.0,0.00014745,2]
[404285084,1770031841425,-500.0,0.00014745,2]
[404285085,1770031841434,-169.35603716,0.00014745,2]
[404285086,1770031841445,-500.0,0.00014745,2]
[404285087,1770031841454,-150.0,0.00014745,2]
[404285088,1770031841465,-235.58915604,0.00014745,2]
[404285089,1770031841475,-500.0,0.00014745,2]
[404285090,1770031841485,-6229.0,0.000148,2]
[404285091,1770031841495,-500.0,0.000148,2]
[404285092,1770031841506,-500.0,0.000148,2]
[404285093,1770031841516,-506.61162713,0.000148,2]
[404285094,1770031841526,-150.0,0.000148,2]
[404285095,1770031841536,-158.43558998,0.000148,2]
[404285096,1770031841546,-517.79119955,0.00014854,2]
[404285097,1770031841555,-6229.0,0.00014855,2]
[404285098,1770031841565,-500.0,0.00014855,2]
[404285099,1770031841574,-500.0,0.00014855,2]
[404285100,1770031841586,-207.33206215,0.00014855,2]
[404285101,1770031841595,-1680.54744056,0.0001486,2]
[404285102,1770031841604,-2273.832,0.0001486,2]
[404285103,1770031841613,-3267.25361276,0.00014861,2]
[404285104,1770031841622,-3221.77332061,0.00014861,2]
[404285105,1770031841631,-1000.0,0.000149,2]
[404285106,1770031841640,-160.29,0.00014909,2]
[404285107,1770031841649,-6229.0,0.0001491,2]
[404285108,1770031841658,-6229.0,0.00014965,2]
[404285109,1770031841667,-301.85289058,0.00014969,2]
[404285110,1770031841676,-301.85289058,0.00014969,2]
[404285111,1770031841685,-250.0,0.00015,2]
[404285112,1770031841693,-6229.0,0.00015019,2]
[404285113,1770031841702,-6229.0,0.00015074,2]
[404285114,1770031841711,-6229.0,0.00015129,2]
[404285115,1770031841720,-1860.35783051,0.00015165,2]
[404285116,1770031841728,-6229.0,0.00015184,2]
[404285117,1770031841737,-151.0,0.00015238,2]
[404285118,1770031841746,-151.0,0.00015238,2]
[404285119,1770031841755,-151.0,0.00015238,2]
[404285120,1770031841764,-151.0,0.00015238,2]
[404285121,1770031841773,-6229.0,0.00015239,2]
[404285122,1770031841783,-3267.25361276,0.00015241,2]
[404285123,1770031841792,-6229.0,0.00015293,2]
[404285124,1770031841800,-181.68,0.00015297,2]
[404285125,1770031841809,-169.52791299,0.00015336,2]
[404285126,1770031841818,-6229.0,0.00015348,2]
[404285127,1770031841827,-6229.0,0.00015403,2]
[404285128,1770031841838,-485.31,0.00015436,2]
[404285129,1770031841847,-6229.0,0.00015458,2]
[404285130,1770031841855,-301.85289058,0.00015458,2]
[404285131,1770031841864,-301.85289058,0.00015458,2]
[404285132,1770031841873,-500.0,0.00015473,2]
[404285133,1770031841881,-500.0,0.00015473,2]
[404285134,1770031841890,-500.0,0.00015473,2]
[404285135,1770031841899,-500.0,0.00015473,2]
[404285136,1770031841908,-447.23523297,0.00015473,2]
[404285137,1770031841917,-500.0,0.00015473,2]
[404285138,1770031841926,-500.0,0.00015473,2]
[404285139,1770031841935,-500.0,0.00015473,2]
[404285140,1770031841943,-500.0,0.00015473,2]
[404285141,1770031841952,-6229.0,0.00015513,2]
[404285142,1770031841961,-200.0,0.00015562,2]
[404285143,1770031841970,-6229.0,0.00015567,2]
[404285144,1770031841979,-1343.9,0.00015601,2]
[404285145,1770031841988,-3267.25361276,0.00015621,2]
[404285146,1770031841998,-6229.0,0.00015622,2]
[404285147,1770031842007,-6229.0,0.00015677,2]
[404285148,1770031842016,-500.0,0.00015699,2]
[404285149,1770031842025,-500.0,0.00015699,2]
[404285150,1770031842034,-6229.0,0.00015732,2]
[404285151,1770031842043,-6229.0,0.00015786,2]
[404285152,1770031842051,-6241.61609587,0.00015841,2]
[404285153,1770031842060,-1860.35783051,0.00015849,2]
[404285154,1770031842069,-770.39,0.00015867,2]
[404285155,1770031842078,-2351.0,0.0001588,2]
[404285156,1770031842091,-159.99318318,0.00015931,2]
[404285157,1770031842099,-150.0,0.00015942,2]
[404285158,1770031842108,-301.85289058,0.00015946,2]
[404285159,1770031842117,-393.32,0.00015986,2]
[404285160,1770031842126,-200.0,0.00015987,2]
[404285161,1770031842134,-956.83032625,0.00016,2]
[404285162,1770031842143,-270.91542523,0.00016,2]
[404285163,1770031842152,-421.15115649,0.00016,2]
[404285164,1770031842162,-8886.1890163,0.00016,4]
[404285165,1770031842171,-3267.25361276,0.00016001,2]
[404285166,1770031842179,-502.53462592,0.00016021,2]
[404285167,1770031842188,-1000.0,0.00016021,2]
[404285168,1770031842197,-1000.0,0.00016021,2]
[404285169,1770031842207,-993.57784368,0.00016021,2]
[404285170,1770031842215,-1000.0,0.00016021,2]
[404285171,1770031842226,-1000.0,0.00016021,2]
[404285172,1770031842235,-1000.0,0.00016021,2]
[404285173,1770031842245,-181.68,0.00016062,2]